Cogmind - Beta 16 @@@ ROGUE MODE // 2026.01.12 @ 18:00:00 Player: DietSnapple Result: Destroyed by P-80 Master with Gamma Rifle Performance ------------- Evolutions (8) 4000 Regions Visited (17) 3400 Robots Destroyed (126) 630 Value Destroyed (3788) 3788 Prototype IDs (30) 600 Alien Tech Used (1) 200 Bonus (800) 800 TOTAL SCORE: 13418 Bonus ------- Entered DSFs 500 Aligned with FarCom 300 Cogmind --------- Core Integrity 0/1450 Matter 300/300 Energy 99/100 System Corruption 17% Temperature Cool (0) Movement Core (50) Location -2/Research Parts ------- > --- POWER (3) -------- (None) > --- PROPULSION (7) --- (None) > --- UTILITY (11) ----- (None) > --- WEAPON (2) ------- (None) > --- INVENTORY (5) ---- Antimatter Reactor Medium Storage Unit Improved Field Recycling Unit (0) Enhanced Quantum Rifle Great Maul Peak State ------------ > --- POWER ------------ Enhanced Nuclear Core Enhanced Nuclear Core > --- PROPULSION ------- Gravmag System Gravmag System Gravmag System Gravmag System Gravmag Array > --- UTILITY ---------- Lightpack 2.0 Improved Utility Shielding Layered Light Armor Plating Improved Hacking Suite Improved Hacking Suite Improved System Shield Advanced System Shield > --- WEAPON ----------- Lance > --- INVENTORY -------- Micro Nuclear Core Fission Core Neutrino Core Improved Heat Sink Coolant Injector Energy Well Energy Well Core Analyzer Core Analyzer Core Analyzer Launcher Loader Improved Propulsion Shielding Improved Propulsion Shielding Layered Light Armor Plating Hardlight Generator Improved Hacking Suite Improved Hacking Suite Improved Hacking Suite Improved Hacking Suite Improved Hacking Suite Improved Hacking Suite Improved System Shield Improved System Restoration Module Improved Field Recycling Unit Improved Field Recycling Unit Heavy Ion Cannon Heavy Ion Cannon Advanced Datajack [Rating: 113] Favorites ----------- Power Cooled Ion Engine Engine Cooled Ion Engine Power Core Enhanced Nuclear Core Propulsion Improved Aluminum Leg Treads Light Treads Leg Improved Aluminum Leg Hover Unit Gravmag System Flight Unit Xenon Bombardment Thruster Utility Improved Hacking Suite Device Improved Heat Sink Storage Large Storage Unit Processor Melee Analysis Suite Hackware Improved Hacking Suite Protection Light Armor Plating Weapon Improved Medium Laser Energy Gun Improved Medium Laser Energy Cannon Heavy Ion Cannon Ballistic Gun Assault Rifle Launcher Missile Launcher Impact Weapon Great Maul Slashing Weapon Blade Saw Piercing Weapon Spear Build | -11 -10 -10 -10 -9 -8 -7 -6 -6 -6 -6 -5 -4 -4 -4 -3 -3 -2 ------- Run | Yrd Mat Min Exi Min Mat Fac Fac Ext Cet Arc Fac Fac Upp Upp Res DSF Res Slots Evolved 16 | . . . . . 4 2 2 . . . 2 2 . . 2 . 2 Power 2 | . . . . . . . 1 . . . . . . . . . 1 Propulsion 5 | . . . . . 2 1 1 . . . . . . . . . 1 Utility 9 | . . . . . 2 1 . . . . 2 2 . . 2 . . Weapon . | . . . . . . . . . . . . . . . . . . Parts Attached 128 | 9 8 2 . . 34 17 7 6 1 12 8 10 1 2 1 1 9 Power 14 | 2 2 . . . 5 1 2 . . 1 . 1 . . . . . Engine 6 | 2 2 . . . 1 1 . . . . . . . . . . . Core 8 | . . . . . 4 . 2 . . 1 . 1 . . . . . Reactor . | . . . . . . . . . . . . . . . . . . Propulsion 45 | 2 2 . . . 10 8 2 1 1 8 4 3 . 1 . . 3 Treads 2 | 2 . . . . . . . . . . . . . . . . . Leg 11 | . 2 . . . 9 . . . . . . . . . . . . Wheel . | . . . . . . . . . . . . . . . . . . Hover 14 | . . . . . . . . . . 6 3 3 . 1 . . 1 Flight 18 | . . . . . 1 8 2 1 1 2 1 . . . . . 2 Utility 42 | 3 2 1 . . 10 4 2 3 . 3 2 6 1 1 1 1 2 Device 14 | 2 . . . . 5 1 1 1 . . . 1 . 1 1 . 1 Storage 4 | 1 1 . . . . 1 . . . . . . . . . 1 . Processor 4 | . . . . . . 2 1 1 . . . . . . . . . Hackware 6 | . . . . . . . . 1 . 1 . 4 . . . . . Protection 14 | . 1 1 . . 5 . . . . 2 2 1 1 . . . 1 Artifact . | . . . . . . . . . . . . . . . . . . Weapon 27 | 2 2 1 . . 9 4 1 2 . . 2 . . . . . 4 Energy Gun 9 | . 1 1 . . 6 . . . . . . . . . . . 1 Energy Cannon 2 | . . . . . 2 . . . . . . . . . . . . Ballistic Gun 3 | 2 1 . . . . . . . . . . . . . . . . Ballistic Cannon . | . . . . . . . . . . . . . . . . . . Launcher 4 | . . . . . . 2 . 1 . . 1 . . . . . . Special Weapon . | . . . . . . . . . . . . . . . . . . Impact Weapon 4 | . . . . . . 1 . . . . . . . . . . 3 Slashing Weapon 2 | . . . . . 1 . 1 . . . . . . . . . . Piercing Weapon 3 | . . . . . . 1 . 1 . . 1 . . . . . . Special Melee Weapon . | . . . . . . . . . . . . . . . . . . Unidentified Prototypes 8 | . 2 . . . 2 1 2 . . . . . . 1 . . . Parts Lost 71 | . 1 . . . 16 4 2 2 4 9 8 9 1 4 . 1 10 Power 7 | . . . . . 2 . . . . 2 . 2 . 1 . . . Propulsion 35 | . 1 . . . 7 2 . 1 3 6 5 5 1 1 . . 3 Utility 20 | . . . . . 5 1 1 . . 1 1 2 . 2 . 1 6 Weapon 9 | . . . . . 2 1 1 1 1 . 2 . . . . . 1 Highest Loss Streak 12 | . 1 . . . 4 2 1 2 4 12 3 3 1 4 . 1 7 To Critical Strikes . | . . . . . . . . . . . . . . . . . . Average Backups 15 | 3 11 14 13 13 11 21 29 33 31 32 33 24 2 3 3 3 4 Power 1 | . 1 2 2 2 1 1 2 4 4 4 3 2 . . . . 1 Propulsion 2 | 1 3 3 3 3 2 4 5 5 4 1 2 . . . . . . Utility 8 | . 3 4 4 4 5 10 17 19 19 21 24 19 2 3 2 2 2 Weapon 2 | . 2 5 4 4 2 4 3 4 4 4 2 1 . . 1 . 1 Tool/Special . | . . . . . . . . . . . . . . . . . . Unused Backups 47 | . 4 3 2 . 6 1 4 . . 1 3 21 1 . . . 1 Power 5 | . 1 . . . 1 . . . . . 1 1 . . . . 1 Propulsion 4 | . 1 1 . . 1 . . . . . . 1 . . . . . Utility 28 | . . 1 2 . . 1 3 . . 1 1 18 1 . . . . Weapon 9 | . 2 1 . . 4 . 1 . . . 1 . . . . . . Tool/Special 1 | . . . . . . . . . . . . 1 . . . . . Average Slot Usage (%) 85 | . 98 100 100 100 92 79 81 85 79 53 83 71 66 50 42 46 26 Engine 6 | . 14 14 14 14 . 3 5 6 6 . . . . . . . . Core 4 | . . . . . 7 3 6 6 6 4 11 8 5 3 . . . Treads 3 | . 24 . . . . . . . . . . . . . . . . Leg 14 | . 2 28 28 28 32 4 . . . . . . . . . . . Hover 4 | . . . . . . . . . . 15 31 19 9 3 4 4 1 Flight 4 | . . . . . . 31 39 40 36 8 . . . . . . 3 Device 7 | . 9 . . . 18 7 4 3 6 1 . . 5 4 9 9 5 Storage 9 | . 14 14 14 14 9 8 6 6 6 6 5 4 . . . . . Hackware 4 | . . . . . . . . 2 6 7 11 22 31 29 23 23 11 Protection 6 | . 4 14 14 14 6 . . . . . 10 9 9 5 4 4 . Energy Gun 7 | . . 18 28 28 10 . . . . . . . . . . . . Energy Cannon 1 | . . . . . 7 2 . . . . . . . . . . . Ballistic Gun 5 | . 27 9 . . . . . . . . . . . . . . . Piercing Weapon 1 | . . . . . . 4 4 4 6 5 4 5 4 3 . 3 . Peak Build Rating 113 | 7 15 18 20 20 35 78 87 88 88 93 105 113 62 53 49 56 59 Average Rating 40 | 5 8 16 18 20 30 69 82 87 83 72 100 100 60 47 49 54 33 On Entrance 48 | . 7 15 18 20 20 35 74 83 88 81 93 93 60 48 43 49 52 Avg Prop Armor Cover (%) 8 | . . . . . . . . . . 3 . . . . . . 30 Naked Turns 48 | . . . . . . . . . . . . . . . . . 48 Heaviest Build 52 | 14 36 37 37 37 52 48 32 31 31 25 36 30 14 12 4 7 28 Greatest Support 56 | 40 40 26 26 26 52 42 32 33 31 54 54 56 21 11 11 11 23 Greatest Overweight (x) 3 | . 1 1 1 1 1 1 . . . 2 . 1 . 3 . . 2 Average Overweight (x) . | . . 1 1 1 . . . . . . . . . . . . . Largest Inventory Capacity 40 | 8 15 15 15 15 15 40 40 40 40 40 40 40 5 5 5 10 5 Average Capacity 19 | 7 12 15 15 15 15 39 40 40 40 40 40 33 5 5 5 5 5 Most Carried 40 | 6 15 15 15 15 15 31 39 37 33 37 40 34 4 4 3 5 5 Average Carried 16 | 3 11 14 14 15 14 21 30 33 32 33 34 25 2 3 3 3 4 Final Capacity 40 | 8 15 15 15 15 15 40 40 40 40 40 40 5 5 5 5 5 5 Final Carried 37 | 6 15 15 15 15 15 30 37 33 31 37 31 5 4 4 3 5 5 Class Distribution -------------------- 53% | Mutant 11% | Hauler-Sprinter 10% | Scavenger-Mutant 9% | Hauler-Mutant 7% | Wizard-Mutant 7% | Hacker-Mutant Dominant Class ---------------- Mutant | -10/Materials Mutant | -10/Mines Mutant | -10/Exiles Mutant | -9/Mines Mutant | -8/Materials Hauler-Sprinter | -7/Factory Hauler-Sprinter | -6/Factory Hauler-Sprinter | -6/Extension Hauler-Sprinter | -6/Cetus Hauler-Mutant | -6/Archives Hauler-Mutant | -5/Factory Hacker-Mutant | -4/Factory Wizard-Mutant | -4/Upper Caves Wizard-Mutant | -4/Upper Caves Wizard-Mutant | -3/Research Wizard-Mutant | -3/DSF Hacker-Mutant | -2/Research Resources | -11 -10 -10 -10 -9 -8 -7 -6 -6 -6 -6 -5 -4 -4 -4 -3 -3 -2 ----------- Run | Yrd Mat Min Exi Min Mat Fac Fac Ext Cet Arc Fac Fac Upp Upp Res DSF Res Matter Collected 2300 | 371 330 62 . . 353 42 228 227 . 135 218 178 25 31 . 40 60 Remotely . | . . . . . . . . . . . . . . . . . . Salvage Created 5043 | 146 511 99 . 120 1562 49 393 579 20 630 126 486 . 44 . 139 139 Parts 290 | 9 38 4 . 2 77 4 24 19 . 51 10 32 . 6 . 10 4 Haulers Intercepted 7 | . 1 . . . 4 . . 2 . . . . . . . . . Recyclers Shooed 6 | 1 1 . . . . . 1 2 . . 1 . . . . . . Parts Field Recycled . | . . . . . . . . . . . . . . . . . . Retrieved Matter . | . . . . . . . . . . . . . . . . . . Parts Self-Destructed 6 | . . . . . . . . . . . . . . 6 . . . Prevented . | . . . . . . . . . . . . . . . . . . Parts Restored . | . . . . . . . . . . . . . . . . . . Kills | -11 -10 -10 -10 -9 -8 -7 -6 -6 -6 -6 -5 -4 -4 -4 -3 -3 -2 ------- Run | Yrd Mat Min Exi Min Mat Fac Fac Ext Cet Arc Fac Fac Upp Upp Res DSF Res Combat Hostiles Destroyed 79 | . 14 2 . 3 25 1 3 5 . 4 7 7 . 2 . 2 4 Melee 23 | . . . . . 3 1 . . . 4 1 7 . 2 . 2 3 Guns 39 | . 14 2 . 3 20 . . . . . . . . . . . . Cannons 1 | . . . . . 1 . . . . . . . . . . . . AOE 14 | . . . . . . . 3 5 . . 6 . . . . . . Classes Destroyed 15 | 3 5 . . . 4 . 1 . . . 1 . . . . 1 . Worker 4 | 1 1 . . . . . 1 . . . . 1 . . . . . Builder 6 | . . . . . 1 . 1 1 . . . 2 . . . . 1 Tunneler 3 | 2 . . . . . . 1 . . . . . . . . . . Hauler 7 | . 1 . . . 4 . . 2 . . . . . . . . . Recycler 8 | 1 . . . . 2 . 2 2 . . . 1 . . . . . Operator 17 | . 1 . . . 4 1 . . . 9 . 2 . . . . . Watcher 2 | . 1 . . . . . . . 1 . . . . . . . . Swarmer 28 | . 6 . . . 4 . . 4 . . 4 4 . 2 . . 4 Cutter 3 | . . . . . . . 3 . . . . . . . . . . Grunt 32 | . 8 2 . 3 17 1 . . . . . 1 . . . . . Brawler 1 | . . . . . 1 . . . . . . . . . . . . Sentry 7 | . . . . . 2 . . 1 . 4 . . . . . . . Specialist 2 | . . . . . . . . . . . . . . . . 2 . Hunter 3 | . . . . . 1 . . . . . 2 . . . . . . Programmer 3 | . . . . . . . . . . . 1 2 . . . . . Best Kill Streak 6 | 1 3 2 . 3 6 1 5 5 4 2 5 4 . 2 . 1 4 Combat Bots Only 6 | . 3 2 . 3 6 1 3 5 . 2 5 4 . 2 . 1 4 Max Kills in Single Turn 3 | 1 1 1 . 1 2 1 3 3 1 1 2 1 . 1 . 1 1 Gunslinging . | . . . . . . . . . . . . . . . . . . Exploded 3 | . . . . . . . 3 3 . . 2 . . . . . . Melee 1 | . . . . . 1 1 . . . 1 1 1 . 1 . 1 1 Uniques/NPCs Destroyed . | . . . . . . . . . . . . . . . . . . Combat | -11 -10 -10 -10 -9 -8 -7 -6 -6 -6 -6 -5 -4 -4 -4 -3 -3 -2 -------- Run | Yrd Mat Min Exi Min Mat Fac Fac Ext Cet Arc Fac Fac Upp Upp Res DSF Res Hostile Shots Fired 906 | . 61 6 . 15 155 47 13 56 23 52 82 119 19 53 . 38 167 Missed 340 | . 14 2 . 6 38 28 4 36 7 15 34 53 12 18 . 21 52 Hits 566 | . 47 4 . 9 117 19 9 20 16 37 48 66 7 35 . 17 115 Melee 10 | . . . . . 3 . 7 . . . . . . . . . . Projectile 556 | . 47 4 . 9 114 19 2 20 16 37 48 66 7 35 . 17 115 AOE 2 | . . . . . . . 1 . . . 1 . . . . . . Critical Strikes 32 | . . . . . 5 2 7 1 . 2 1 4 . 1 . . 9 Actively Blocked 8 | . . . . . . . . . . . . . . . . . 8 Part Disruptions 1 | . . . . . . . . . . . . . . . . . 1 Damage Taken 10743 | . 485 56 . 110 2000 335 200 229 383 869 1103 1270 99 711 . 179 2714 Core 3511 | . 125 . . 50 320 77 67 58 30 217 202 161 23 566 . 147 1468 Absorbed by Shields . | . . . . . . . . . . . . . . . . . . Redirected to Shielding 183 | . . . . . . . . . . . 32 60 47 29 . 15 . Core Remaining (%) 64 | 100 . . . 30 41 89 . . . 56 79 . . 34 . 88 . Volleys Fired 220 | 25 52 4 . 6 107 . 1 7 2 . 15 . . . . . 1 Largest 2 | 2 2 2 . 2 2 . 1 1 1 . 1 . . . . . 1 Hottest 130 | 40 40 76 . 112 130 . 33 36 36 . 36 . . . . . 65 Shots Fired 401 | 50 104 8 . 12 200 . 1 7 2 . 16 . . . . . 1 Gun 353 | 50 104 8 . 12 178 . . . . . . . . . . . 1 Cannon 22 | . . . . . 22 . . . . . . . . . . . . Launcher 26 | . . . . . . . 1 7 2 . 16 . . . . . . Special . | . . . . . . . . . . . . . . . . . . Kinetic 158 | 50 104 4 . . . . . . . . . . . . . . . Thermal 217 | . . 4 . 12 200 . . . . . . . . . . . 1 Explosive 26 | . . . . . . . 1 7 2 . 16 . . . . . . Electromagnetic . | . . . . . . . . . . . . . . . . . . Robot Hit Streak 15 | 9 11 6 . 11 15 . . 4 . . 4 . . . . . . Robot Miss Streak 6 | 3 3 2 . 2 6 . . 1 . . 1 . . . . . 2 Penetration Max . | . . . . . . . . . . . . . . . . . . Secondary Targets 7 | . 2 . . 1 4 . . . . . . . . . . . . Max Gunslinging Chain 1 | . 1 . . 1 1 . . . . . . . . . . . . Shots Hit Robots 398 | 31 73 6 . 8 139 3 10 21 . 48 13 21 . 5 . 3 17 Core Hits 194 | 8 31 4 . 4 57 1 11 13 7 22 18 9 . 2 . 2 5 Critical Kills 1 | . . . . . . . . . . . . . . . . . 1 Critical Parts Destroyed 1 | . . . . . . . . . . . . . . . . . 1 Critical Strikes 25 | . . . . 1 14 . . 1 . 3 1 1 . . . 2 2 Burn 13 | . . . . 1 12 . . . . . . . . . . . . Smash 2 | . . . . . . . . . . . . . . . . . 2 Sever 2 | . . . . . 2 . . . . . . . . . . . . Impale 8 | . . . . . . . . 1 . 3 1 1 . . . 2 . Melee Attacks 191 | . . . . . 8 16 12 19 . 60 5 33 . 10 . 3 25 Impact 25 | . . . . . . 1 . . . . . . . . . . 24 Slashing 8 | . . . . . 8 . . . . . . . . . . . . Piercing 158 | . . . . . . 15 12 19 . 60 5 33 . 10 . 3 1 Sneak Attacks 34 | . . . . . . . 5 6 . 13 . 7 . . . 2 1 Combat Hostiles . | . . . . . . . . . . . . . . . . . . Follow-up Attacks . | . . . . . . . . . . . . . . . . . . Damage Inflicted 11893 | 306 878 82 . 136 2639 143 597 1356 235 1930 1230 1116 . 179 . 144 922 Guns 3568 | 306 878 82 . 136 2128 . . . . . . . . . . . 38 Cannons 325 | . . . . . 325 . . . . . . . . . . . . Explosions 1940 | . . . . . . . 126 490 235 . 1067 . . . . . 22 Melee 6039 | . . . . . 186 143 471 866 . 1930 163 1116 . 179 . 144 841 Ramming 21 | . . . . . . . . . . . . . . . . . 21 Kinetic 1217 | 306 878 33 . . . . . . . . . . . . . . . Thermal 2745 | . . 49 . 136 2453 . . . . . 69 . . . . . 38 Explosive 1849 | . . . . . . . 126 490 235 . 998 . . . . . . Electromagnetic 22 | . . . . . . . . . . . . . . . . . 22 Impact 872 | . . . . . . 77 . . . . . . . . . . 795 Slashing 186 | . . . . . 186 . . . . . . . . . . . . Piercing 4981 | . . . . . . 66 471 866 . 1930 163 1116 . 179 . 144 46 Highest Corruption 16 | . . . . . 1 2 . . . . 3 3 3 9 . . 16 Average Corruption 2 | . . . . . 1 2 . . . . 2 2 3 4 . . 11 Corruption Purged . | . . . . . . . . . . . . . . . . . . Corruption Blocked . | . . . . . . . . . . . . . . . . . . Effects 31 | . . . . . 9 . . . . . 3 3 4 8 . . 4 Message Errors 11 | . . . . . 3 . . . . . . 2 1 3 . . 2 Matter Fused 6 | . . . . . 1 . . . . . 1 . 3 1 . . . Heat Flow Errors 3 | . . . . . 1 . . . . . . . . 2 . . . Energy Discharges 3 | . . . . . 1 . . . . . . 1 . . . . 1 Parts Fused 1 | . . . . . . . . . . . 1 . . . . . . Data Loss (minor) 2 | . . . . . 2 . . . . . . . . . . . . Data Loss (major) 1 | . . . . . . . . . . . . . . 1 . . . Misfires 2 | . . . . . 1 . . . . . 1 . . . . . . Alerts 1 | . . . . . . . . . . . . . . 1 . . . Misdirections 1 | . . . . . . . . . . . . . . . . . 1 Overload Shots . | . . . . . . . . . . . . . . . . . . Overflow Damage 1158 | . . . . . 86 41 55 187 . 188 7 288 . . . 87 219 Projectiles 86 | . . . . . 86 . . . . . . . . . . . . Explosions 15 | . . . . . . . . 15 . . . . . . . . . Melee 1057 | . . . . . . 41 55 172 . 188 7 288 . . . 87 219 Knockbacks 10 | . . . . . . . . . . . . . . . . . 10 Impact 9 | . . . . . . . . . . . . . . . . . 9 Kinetic . | . . . . . . . . . . . . . . . . . . Secondary 1 | . . . . . . . . . . . . . . . . . 1 Self-Inflicted Damage 51 | . . . . . . . . . . . . . . . . . 51 Shots 1 | . . . . . . . . . . . . . . . . . 1 Rammed 5 | . . . . . . . . . . . . . . . . . 5 Targets Rammed 5 | . . . . . . . . . . . . . . . . . 5 Kicked . | . . . . . . . . . . . . . . . . . . Crushed . | . . . . . . . . . . . . . . . . . . Highest Temperature 454 | . 6 96 . 384 454 20 330 257 . 6 82 22 . 89 . . . Average Temperature 92 | . 6 51 . 200 145 10 126 130 . 3 18 12 . 58 . . . Received Heat Transfer 1896 | . 204 33 . 60 981 63 36 72 81 162 12 153 21 18 . . . Effects 5 | . . . . . 2 . . 3 . . . . . . . . . Shutdowns 1 | . . . . . 1 . . . . . . . . . . . . Interference 3 | . . . . . . . . 3 . . . . . . . . . Short Circuit 1 | . . . . . 1 . . . . . . . . . . . . Siege Activations . | . . . . . . . . . . . . . . . . . . Martial Activations . | . . . . . . . . . . . . . . . . . . Shielding Activations . | . . . . . . . . . . . . . . . . . . Robots Disrupted . | . . . . . . . . . . . . . . . . . . Combat Hostiles . | . . . . . . . . . . . . . . . . . . Robots Corrupted 2 | . . . . . . . . . . . . . . . . . 2 Combat Hostiles 1 | . . . . . . . . . . . . . . . . . 1 Parts Fried 5 | . . . . . . . . . . . . . . . . . 5 Impact Corruptions 10 | . . . . . . 1 . . . . . . . . . . 9 Robots Melted 2 | . . . . . 2 . . . . . . . . . . . . Combat Hostiles 1 | . . . . . 1 . . . . . . . . . . . . Parts Melted 14 | . . . . 1 13 . . . . . . . . . . . . Heat Transferred 6525 | . . 111 . 370 5957 . . . . . 50 . . . . . 37 Parts Sabotaged . | . . . . . . . . . . . . . . . . . . Parts Stolen . | . . . . . . . . . . . . . . . . . . Parts Stripped . | . . . . . . . . . . . . . . . . . . Power Chain Reactions . | . . . . . . . . . . . . . . . . . . Alert | -11 -10 -10 -10 -9 -8 -7 -6 -6 -6 -6 -5 -4 -4 -4 -3 -3 -2 ------- Run | Yrd Mat Min Exi Min Mat Fac Fac Ext Cet Arc Fac Fac Upp Upp Res DSF Res Maximum Alert Level 1 | . . . . . . . . . . . 1 1 . . . . . Low Security (%) 98 | 100 100 100 . 100 100 100 100 100 100 100 96 84 . . 100 100 100 Level 1 1 | . . . . . . . . . . . 3 15 . . . . . Level 2 . | . . . . . . . . . . . . . . . . . . Level 3 . | . . . . . . . . . . . . . . . . . . Level 4 . | . . . . . . . . . . . . . . . . . . Level 5 . | . . . . . . . . . . . . . . . . . . High Security . | . . . . . . . . . . . . . . . . . . Max Security . | . . . . . . . . . . . . . . . . . . Peak Influence 261 | 5 137 54 . 70 192 124 115 134 52 20 261 253 . . . 55 93 Initial 114 | . . 24 . . 1 68 60 41 29 . . 114 . . . . 33 Average 61 | . 47 3 . 11 110 32 46 93 24 4 72 149 . . . 39 45 Influence Increases 3519 | 20 389 50 . 75 888 263 167 194 23 140 451 519 30 40 . 70 200 Destroy 0b10 Robot/C 1580 | . 280 40 . 60 500 20 60 100 . 80 140 140 . 40 . 40 80 Destroy 0b10 Robot/NC 235 | 20 20 . . . 55 5 25 25 5 45 . 30 . . . . 5 Destroy Leader 292 | . 64 10 . 10 108 . 10 20 . . 40 20 . . . . 10 Successful Hack 63 | . 9 . . 5 15 5 . 5 . . 24 . . . . . . Disable Machine 120 | . . . . . 30 . 15 15 . 15 30 . . . . . 15 Destroy Structure 209 | . 1 . . . 15 8 12 29 18 . 112 14 . . . . . Partial Spotted 60 | . . . . . . 15 15 . . . 30 . . . . . . Lose Combat Pursuer 960 | . 15 . . . 165 210 30 . . . 75 315 30 . . 30 90 Influence Decreases 3519 | 20 326 113 . 70 742 290 206 225 75 142 218 571 148 103 . 10 260 Entered New Map 488 | . . 39 . . 4 83 64 44 25 2 . 119 68 13 . . 27 Time Decay 2205 | 20 316 74 . 70 583 167 122 80 10 100 138 262 70 60 . . 133 Search Patrol Dispatched 100 | . . . . . . . . . . . . 100 . . . . . Lost Part 645 | . 10 . . . 155 40 20 20 40 40 80 90 10 30 . 10 100 Lost Ally 40 | . . . . . . . . 40 . . . . . . . . . Purge Threat 41 | . . . . . . . . 41 . . . . . . . . . Squads Dispatched 33 | . 4 . . . 5 3 1 1 1 . 7 8 . . . 1 2 Investigation 5 | . 2 . . . 2 . . . 1 . . . . . . . . Extermination 6 | . . . . . . 1 . . . . 2 2 . . . . 1 Reinforcement 18 | . 2 . . . 3 2 1 1 . . 2 5 . . . 1 1 Assault . | . . . . . . . . . . . . . . . . . . Garrison 4 | . . . . . . . . . . . 3 1 . . . . . Intercept . | . . . . . . . . . . . . . . . . . . Searches Triggered 1 | . . . . . . . . . . . . 1 . . . . . Construction Impeded 2 | . . . . . . . . . . . . 1 . . . . 1 Haulers Reinforced . | . . . . . . . . . . . . . . . . . . Active Scanning Responses . | . . . . . . . . . . . . . . . . . . Cargo Convoy Interrupts . | . . . . . . . . . . . . . . . . . . Stealth | -11 -10 -10 -10 -9 -8 -7 -6 -6 -6 -6 -5 -4 -4 -4 -3 -3 -2 --------- Run | Yrd Mat Min Exi Min Mat Fac Fac Ext Cet Arc Fac Fac Upp Upp Res DSF Res Distress Signals 8 | . 1 . . . 1 1 . 1 1 . 2 . . . . . 1 Communications Jammed . | . . . . . . . . . . . . . . . . . . Distress Signals . | . . . . . . . . . . . . . . . . . . Times Spotted 225 | . 26 2 . 3 51 16 5 16 8 17 22 34 5 5 . 3 12 Peak Tracking Total 12 | . 4 2 . 2 7 7 5 12 7 3 12 8 3 5 . 5 8 Tactical Retreats 40 | . 1 . . . 9 8 1 . . . 3 12 1 . . 2 3 Traps | -11 -10 -10 -10 -9 -8 -7 -6 -6 -6 -6 -5 -4 -4 -4 -3 -3 -2 ------- Run | Yrd Mat Min Exi Min Mat Fac Fac Ext Cet Arc Fac Fac Upp Upp Res DSF Res Traps Triggered 8 | . 1 . . . 3 2 1 . . . . 1 . . . . . Indirectly . | . . . . . . . . . . . . . . . . . . Trap Hack Attempts . | . . . . . . . . . . . . . . . . . . Triggered . | . . . . . . . . . . . . . . . . . . Disarmed . | . . . . . . . . . . . . . . . . . . Reprogrammed . | . . . . . . . . . . . . . . . . . . Reused . | . . . . . . . . . . . . . . . . . . Traps Extracted . | . . . . . . . . . . . . . . . . . . Installed . | . . . . . . . . . . . . . . . . . . Triggered . | . . . . . . . . . . . . . . . . . . Machines | -11 -10 -10 -10 -9 -8 -7 -6 -6 -6 -6 -5 -4 -4 -4 -3 -3 -2 ---------- Run | Yrd Mat Min Exi Min Mat Fac Fac Ext Cet Arc Fac Fac Upp Upp Res DSF Res Machines Disabled 9 | . . . . . 2 . 1 1 . 1 2 . . 1 . . 1 Max in Single Turn 2 | . . . . . 1 . 1 1 . 1 2 . . 1 . . 1 Garrison Access 2 | . . . . . . 1 . . . . . . . . . . 1 Machines Repaired . | . . . . . . . . . . . . . . . . . . Machines Dismantled . | . . . . . . . . . . . . . . . . . . Machines Sabotaged . | . . . . . . . . . . . . . . . . . . Overloaded Fab Kills . | . . . . . . . . . . . . . . . . . . Hacking | -11 -10 -10 -10 -9 -8 -7 -6 -6 -6 -6 -5 -4 -4 -4 -3 -3 -2 --------- Run | Yrd Mat Min Exi Min Mat Fac Fac Ext Cet Arc Fac Fac Upp Upp Res DSF Res Machines Accessed 40 | . 6 1 1 1 6 7 2 3 1 . 3 3 . 3 2 . 1 Terminals 31 | . 6 . . 1 6 6 1 3 1 . 3 2 . . 2 . . Fabricators . | . . . . . . . . . . . . . . . . . . Repair Stations . | . . . . . . . . . . . . . . . . . . Recycling Units 1 | . . . . . . . . . . . . 1 . . . . . Scanalyzers 1 | . . . . . . . 1 . . . . . . . . . . Garrison Access 2 | . . . . . . 1 . . . . . . . . . . 1 Total Hacks 78 | . 12 1 1 1 15 10 2 9 3 . 6 9 . 3 5 . 1 Successful 42 | . 7 1 1 1 9 4 1 5 . . 4 4 . 3 1 . 1 Failed 36 | . 5 . . . 6 6 1 4 3 . 2 5 . . 4 . . Catastrophic 7 | . . . . . . 3 1 1 1 . . 1 . . . . . Database Lockouts . | . . . . . . . . . . . . . . . . . . Manual 37 | . 10 . 1 . 12 5 . . . . 2 4 . . 3 . . Terminals 68 | . 12 . . 1 15 8 1 9 3 . 6 8 . . 5 . . Fabricators . | . . . . . . . . . . . . . . . . . . Repair Stations . | . . . . . . . . . . . . . . . . . . Recycling Units 1 | . . . . . . . . . . . . 1 . . . . . Scanalyzers 1 | . . . . . . . 1 . . . . . . . . . . Garrison Access 3 | . . . . . . 2 . . . . . . . . . . 1 Terminal Hacks 31 | . 6 1 1 1 6 2 1 5 . . 2 2 . 3 1 . . Record 1 | . . . . . . . . . . . . . . 1 . . . Open Door 5 | . . 1 . . . . 1 1 . . . . . 2 . . . Open DSF 2 | . . . . . . 1 . . . . . . . . 1 . . Emergency Access Points 1 | . . . . . . . . . . . . 1 . . . . . Scanalyzer Index 1 | . . . . . 1 . . . . . . . . . . . . Alert Level 4 | . . . . . 1 . . 1 . . 1 1 . . . . . Unreport Threat 2 | . . . . . . . . 2 . . . . . . . . . Locate Traps 8 | . 3 . . . 3 1 . . . . 1 . . . . . . Hauler Manifests 3 | . 2 . . . . . . 1 . . . . . . . . . Registered Components 1 | . 1 . . . . . . . . . . . . . . . . Zone Layout 2 | . . . . 1 1 . . . . . . . . . . . . Proto ID Catalog 1 | . . . 1 . . . . . . . . . . . . . . Fabricator Hacks . | . . . . . . . . . . . . . . . . . . Repair Station Hacks . | . . . . . . . . . . . . . . . . . . Recycling Unit Hacks 1 | . . . . . . . . . . . . 1 . . . . . Report Inventory 1 | . . . . . . . . . . . . 1 . . . . . Scanalyzer . | . . . . . . . . . . . . . . . . . . Garrison Access Hacks 2 | . . . . . . 1 . . . . . . . . . . 1 Seal Access 2 | . . . . . . 1 . . . . . . . . . . 1 Unauthorized Hacks 8 | . 1 . . . 3 1 . . . . 2 1 . . . . . Terminals 8 | . 1 . . . 3 1 . . . . 2 1 . . . . . Botnet 8 | . 1 . . . 3 1 . . . . 2 1 . . . . . Fabricators . | . . . . . . . . . . . . . . . . . . Repair Stations . | . . . . . . . . . . . . . . . . . . Recycling Units . | . . . . . . . . . . . . . . . . . . Scanalyzers . | . . . . . . . . . . . . . . . . . . Garrison Access . | . . . . . . . . . . . . . . . . . . Data Cores Recovered 1 | . . . . . . 1 . . . . . . . . . . . Used . | . . . . . . . . . . . . . . . . . . Hacking Detections 27 | . 5 . . 1 5 5 1 2 1 . 3 3 . . 1 . . Full Trace Events 4 | . 1 . . . 2 . . . 1 . . . . . . . . Feedback Events . | . . . . . . . . . . . . . . . . . . Feedback Blocked . | . . . . . . . . . . . . . . . . . . Robot Schematics Acquired . | . . . . . . . . . . . . . . . . . . Robots Built . | . . . . . . . . . . . . . . . . . . Authchips . | . . . . . . . . . . . . . . . . . . Time . | . . . . . . . . . . . . . . . . . . Total Robot Build Rating . | . . . . . . . . . . . . . . . . . . Part Schematics Acquired . | . . . . . . . . . . . . . . . . . . Parts Built . | . . . . . . . . . . . . . . . . . . Authchips . | . . . . . . . . . . . . . . . . . . Time . | . . . . . . . . . . . . . . . . . . Total Part Build Rating . | . . . . . . . . . . . . . . . . . . Part Studies Acquired . | . . . . . . . . . . . . . . . . . . Parts Repaired . | . . . . . . . . . . . . . . . . . . Time . | . . . . . . . . . . . . . . . . . . Parts Recycled . | . . . . . . . . . . . . . . . . . . Recycled Matter . | . . . . . . . . . . . . . . . . . . Retrieved Matter . | . . . . . . . . . . . . . . . . . . Retrieved Components . | . . . . . . . . . . . . . . . . . . Parts Scanalyzed . | . . . . . . . . . . . . . . . . . . Part Schematics Acquired . | . . . . . . . . . . . . . . . . . . Parts Damaged . | . . . . . . . . . . . . . . . . . . Bothacking | -11 -10 -10 -10 -9 -8 -7 -6 -6 -6 -6 -5 -4 -4 -4 -3 -3 -2 ------------ Run | Yrd Mat Min Exi Min Mat Fac Fac Ext Cet Arc Fac Fac Upp Upp Res DSF Res Used RIF Installer . | . . . . . . . . . . . . . . . . . . Robots Hacked . | . . . . . . . . . . . . . . . . . . Non-combat . | . . . . . . . . . . . . . . . . . . Combat . | . . . . . . . . . . . . . . . . . . Robot Hacks Applied . | . . . . . . . . . . . . . . . . . . Relay Couplers Released . | . . . . . . . . . . . . . . . . . . Fabnet Peak Effective % . | . . . . . . . . . . . . . . . . . . Robots Rewired . | . . . . . . . . . . . . . . . . . . Allies Hacked . | . . . . . . . . . . . . . . . . . . Hacks Repelled . | . . . . . . . . . . . . . . . . . . Allies | -11 -10 -10 -10 -9 -8 -7 -6 -6 -6 -6 -5 -4 -4 -4 -3 -3 -2 -------- Run | Yrd Mat Min Exi Min Mat Fac Fac Ext Cet Arc Fac Fac Upp Upp Res DSF Res Total Allies 2 | . . . . . . . . 2 . . . . . . . . . Largest Group 2 | . . . . . . . . 2 . . . . . . . . . Highest-Rated Group 51 | . . . . . . . . 51 . . . . . . . . . Highest-Rated Ally 31 | . . . . . . . . 31 . . . . . . . . . Total Orders . | . . . . . . . . . . . . . . . . . . Ally Attacks 5 | . . . . . . . . 5 . . . . . . . . . Total Damage 110 | . . . . . . . . 110 . . . . . . . . . Kills . | . . . . . . . . . . . . . . . . . . Allies Corrupted . | . . . . . . . . . . . . . . . . . . Allies Melted . | . . . . . . . . . . . . . . . . . . Intel | -11 -10 -10 -10 -9 -8 -7 -6 -6 -6 -6 -5 -4 -4 -4 -3 -3 -2 ------- Run | Yrd Mat Min Exi Min Mat Fac Fac Ext Cet Arc Fac Fac Upp Upp Res DSF Res Active Infowar (turns) 1683 | 127 949 . . . 133 4 . . . . . 94 140 222 13 . 1 Structural 451 | . . . . . . . . . . . . 94 140 217 . . . Seismic 1076 | 127 949 . . . . . . . . . . . . . . . . Jamming 18 | . . . . . . . . . . . . . . 5 13 . . ECM 138 | . . . . . 133 4 . . . . . . . . . . 1 Robot Analysis Total . | . . . . . . . . . . . . . . . . . . Derelict Logs Recovered 6 | . . 3 . 1 . . . . . . . . . 2 . . . Drone Launches . | . . . . . . . . . . . . . . . . . . Drone Recoveries . | . . . . . . . . . . . . . . . . . . Exploration | -11 -10 -10 -10 -9 -8 -7 -6 -6 -6 -6 -5 -4 -4 -4 -3 -3 -2 ------------- Run | Yrd Mat Min Exi Min Mat Fac Fac Ext Cet Arc Fac Fac Upp Upp Res DSF Res Turns Passed 8828 | 288 1333 1004 424 435 2144 505 262 160 29 379 500 574 140 263 23 74 291 Spaces Moved 8376 | 127 658 508 222 216 1102 1303 676 408 97 382 772 913 302 256 36 99 299 Core 207 | 1 . . . . . . . . . 1 . . . 85 . . 120 Treads 737 | 126 611 . . . . . . . . . . . . . . . . Legs 2133 | . 47 508 222 216 1102 38 . . . . . . . . . . . Wheels . | . . . . . . . . . . . . . . . . . . Hover 2686 | . . . . . . . . . . 302 772 913 302 171 36 99 91 Flight 2613 | . . . . . . 1265 676 408 97 79 . . . . . . 88 Fastest Speed 17 | 50 160 190 190 190 120 25 21 17 20 21 40 44 40 40 60 60 37 Average Speed 81 | 159 168 190 190 190 142 30 21 19 22 45 42 46 45 70 60 60 52 Slowest Speed 240 | 160 240 190 190 190 193 193 21 21 24 150 48 116 46 200 60 60 197 Overloaded Moves 39 | . . . . . . . . 39 . . . . . . . . . Propulsion Burnouts . | . . . . . . . . . . . . . . . . . . Robots Hopped 44 | . . . . . . 14 18 10 1 1 . . . . . . . Potential Cave-ins . | . . . . . . . . . . . . . . . . . . Cave-ins Triggered 1 | . . . . . . 1 . . . . . . . . . . . Exploration Rate (%) 45 | 6 95 88 60 49 67 39 12 56 60 98 17 23 43 21 1 81 10 Regions Visited 17 Branch Regions 8 Pre-discovered Areas 3 | . . 2 . . . . . . . . . . . 1 . . . Known Exits Taken 2 | . . . . . . . 1 . . . . . . . 1 . . Unknown Exits Taken 14 | 1 1 1 1 1 1 1 . 1 1 1 1 1 1 1 . . . Scrap Searched 3 | . . 1 . 1 . . . . . . . . . 1 . . . Spaces Dug 22 | . . . . . 4 9 2 . . . . 7 . . . . . Terrain Destroyed 167 | . . . . . 9 9 11 41 23 . 67 7 . . . . . Melee 18 | . . . . . . 9 2 . . . . 7 . . . . . Projectile 9 | . . . . . 9 . . . . . . . . . . . . AOE 140 | . . . . . . . 9 41 23 . 67 . . . . . . Terrain Rammed . | . . . . . . . . . . . . . . . . . . Walls Destroyed . | . . . . . . . . . . . . . . . . . . Machines Disabled . | . . . . . . . . . . . . . . . . . . Actions | -11 -10 -10 -10 -9 -8 -7 -6 -6 -6 -6 -5 -4 -4 -4 -3 -3 -2 --------- Run | Yrd Mat Min Exi Min Mat Fac Fac Ext Cet Arc Fac Fac Upp Upp Res DSF Res Total 9632 | 164 784 541 226 229 1461 1371 755 436 99 489 918 1011 305 321 36 106 380 Wait 537 | . 40 17 . 8 168 17 38 2 . 16 102 44 . 49 . . 36 Move 8285 | 126 657 507 221 215 1101 1275 649 390 94 379 771 912 301 255 35 98 299 Hop 30 | . . . . . . 13 8 7 1 1 . . . . . . . Pick Up 118 | 4 18 5 2 . 19 22 16 3 . 14 7 5 . . . 2 1 Fast Attach 55 | 7 . . . . 16 5 1 1 . 7 1 6 . 3 . 1 7 Attach 56 | . 2 . . . 11 6 7 2 2 7 7 6 1 2 1 1 1 Detach 21 | . . . . . 3 3 1 . . 4 . 3 2 2 . 1 2 Swap 48 | 2 6 2 . . 13 10 6 4 . 1 3 . . . . . 1 Drop 49 | . 9 6 3 . 15 4 1 1 . . 7 . 1 . . . 2 Fire 220 | 25 52 4 . 6 107 . 1 7 2 . 15 . . . . . 1 Melee 191 | . . . . . 8 16 12 19 . 60 5 33 . 10 . 3 25 Ram 5 | . . . . . . . . . . . . . . . . . 5 Kick . | . . . . . . . . . . . . . . . . . . Crush . | . . . . . . . . . . . . . . . . . . Escape Stasis 17 | . . . . . . . 15 . . . . 2 . . . . . Rewire . | . . . . . . . . . . . . . . . . . . Trap . | . . . . . . . . . . . . . . . . . . Miscellaneous . | . . . . . . . . . . . . . . . . . . Route ------- -11/Scrapyard -10/Materials (discovered 6 exits: [*Mat x3] / *Min x2 / [*Sub]) -10/Mines (discovered 3 exits: [*Mat x2] / *Exi) -10/Exiles -9/Mines -8/Materials (discovered 3 exits: *Fac / Sto x2) -7/Factory (discovered 3 exits: *Fac / [*Low x2]) -6/Factory -6/Extension (discovered 2 exits: *Fac / *Cet) -6/Cetus -6/Archives (discovered 3 exits: *Fac / [*Hub x2]) -5/Factory -4/Factory -4/Upper Caves -4/Upper Caves -3/Research -3/DSF -2/Research History --------- Turn | Location | Event 2 | -11/Scrapyard | Met Revision 17 30 | -11/Scrapyard | Discovered new exit (range 15) 289 | -11/Scrapyard | Entered Materials 309 | -10/Materials | Build established: Mutant 714 | -10/Materials | Discovered new exit (range 9) 733 | -10/Materials | Discovered new exit (range 15) 925 | -10/Materials | Discovered new exit (range 16) 1195 | -10/Materials | Discovered new exit (range 14) 1285 | -10/Materials | Discovered new exit (range 11) 1561 | -10/Materials | Discovered new exit (range 11) 1622 | -10/Materials | Entered Mines 1724 | -10/Mines | Learned location of Zion (-7) 1748 | -10/Mines | Discovered new exit (range 10) 1815 | -10/Mines | A weapon hastily lodged in a ceiling crevice suddenly fell to the ground 2121 | -10/Mines | Discovered new exit (range 15) 2290 | -10/Mines | Found the Drone Emporium 2312 | -10/Mines | Found Prototype Device 2377 | -10/Mines | Deemed a non-threat by the Exiles lab entrance 2379 | -10/Mines | Discovered new exit (range 5) 2436 | -10/Mines | Learned location of Storage (-8) 2626 | -10/Mines | Entered Exiles 2674 | -10/Exiles | Met 8R-AWN 2704 | -10/Exiles | Met EX-HEX 2763 | -10/Exiles | Met EX-BIN 2790 | -10/Exiles | Aligned with FarCom system 2792 | -10/Exiles | Given EX-Vault access code 2845 | -10/Exiles | Opened EX-Vault 2865 | -10/Exiles | Found Lightpack 2.0 2905 | -10/Exiles | Warned to stay clear of 0b10 Research branches 2966 | -10/Exiles | Met EX-DEC 3035 | -10/Exiles | Discovered new exit (range 10) 3050 | -10/Exiles | Left Exiles lab with Lightpack 2.0 3050 | -10/Exiles | Entered Mines 3052 | -9/Mines | Core integrity fell below 50% 3443 | -9/Mines | Learned 2 Materials zone layouts 3462 | -9/Mines | Discovered new exit (range 5) 3485 | -9/Mines | Entered Materials 3485 | -8/Materials | Evolved 4 slots: Propulsion x2, Utility x2 3486 | -8/Materials | Identified exit to Storage 3756 | -8/Materials | Lost 4 parts (1n2u1w) 4050 | -8/Materials | Lost 4 parts (1p2n1w) 4361 | -8/Materials | Build established: Scavenger-Mutant 4426 | -8/Materials | Core integrity fell below 50% 4562 | -8/Materials | Discovered exit to Storage (range 19) 4738 | -8/Materials | Lost 3 parts (1p1n1u) 5280 | -8/Materials | Build established: Mutant 5440 | -8/Materials | Discovered new exit (range 12) 5629 | -8/Materials | Entered Factory 5629 | -7/Factory | Evolved 2 slots: Propulsion x1, Utility x1 5741 | -7/Factory | Discovered new exit (range 5) 5813 | -7/Factory | Discovered new exit (range 7) 5936 | -7/Factory | Discovered new exit (range 16) 6031 | -7/Factory | Build established: Hauler-Sprinter 6092 | -7/Factory | Crushed by falling debris 6134 | -7/Factory | Entered another Factory area 6134 | -6/Factory | Evolved 2 slots: Power x1, Propulsion x1 6162 | -6/Factory | Spotted B-75 Beast 6355 | -6/Factory | Discovered new exit (range 5) 6357 | -6/Factory | Identified exit to Extension 6366 | -6/Factory | Found Launcher Loader 6367 | -6/Factory | Found Launcher Loader 6396 | -6/Factory | Entered Extension 6491 | -6/Extension | Rescued a captive Derelict 6491 | -6/Extension | Rescued a captive Derelict 6508 | -6/Extension | Spotted B-75 Beast 6510 | -6/Extension | Spotted B-75 Beast 6546 | -6/Extension | Disrupted transfer network 6553 | -6/Extension | Discovered new exit (range 16) 6553 | -6/Extension | Discovered new exit (range 15) 6556 | -6/Extension | Entered Cetus 6559 | -6/Cetus | Spotted Cetus Guard 6560 | -6/Cetus | Spotted Cetus Guard 6564 | -6/Cetus | Spotted Cetus Guard 6564 | -6/Cetus | Spotted Cetus Guard 6580 | -6/Cetus | Discovered new exit (range 16) 6585 | -6/Cetus | Entered Archives 6675 | -6/Archives | Lost 12 parts (2p8n1u1w) 6677 | -6/Archives | Discovered new exit (range 14) 6768 | -6/Archives | Discovered new exit (range 16) 6775 | -6/Archives | Discovered new exit (range 16) 6890 | -6/Archives | Unable to access archive contents 6895 | -6/Archives | Unable to access archive contents 6964 | -6/Archives | Entered Factory 6964 | -5/Factory | Evolved 2 slots: Utility x2 7006 | -5/Factory | Build established: Hauler-Mutant 7259 | -5/Factory | Garrison activated, responded to threat 7370 | -5/Factory | Lost 3 parts (3n) 7461 | -5/Factory | Discovered new exit (range 8) 7464 | -5/Factory | Entered another Factory area 7464 | -4/Factory | Evolved 2 slots: Utility x2 7490 | -4/Factory | Lost 3 parts (1n1u1w) 7775 | -4/Factory | Build established: Hacker-Mutant 7832 | -4/Factory | Lost 3 parts (3n) 7904 | -4/Factory | Lost 3 parts (2p1n) 7951 | -4/Factory | Garrison activated, responded to threat 7964 | -4/Factory | Search patrols dispatched 8029 | -4/Factory | Discovered new exit (range 5) 8038 | -4/Factory | Entered Upper Caves 8115 | -4/Upper Caves | Spotted B-86 Titan 8171 | -4/Upper Caves | Discovered new exit (range 11) 8178 | -4/Upper Caves | Entered another Upper Caves area 8209 | -4/Upper Caves | Found Alien Artifact 8209 | -4/Upper Caves | Identified Dimensional Node Initializer 8209 | -4/Upper Caves | Initialized slip node 8249 | -4/Upper Caves | Build established: Wizard-Mutant 8351 | -4/Upper Caves | Learned location of Armory (-3) 8392 | -4/Upper Caves | Core integrity fell below 50% 8425 | -4/Upper Caves | Encountered a Warlord checkpoint 8426 | -4/Upper Caves | Lost 4 parts (1p1n2u) 8426 | -4/Upper Caves | Discovered new exit (range 4) 8430 | -4/Upper Caves | Learned Research security intel 8441 | -4/Upper Caves | Entered Research 8441 | -3/Research | Evolved 2 slots: Utility x2 8464 | -3/Research | Identified exit to DSF 8464 | -3/Research | Entered DSF 8491 | -3/DSF | Additional patrols routed to DSF 8520 | -3/DSF | Discovered new exit (range 15) 8538 | -3/DSF | Entered Research 8538 | -2/Research | Evolved 2 slots: Power x1, Propulsion x1 8670 | -2/Research | Lost 7 parts (2n4u1w) 8710 | -2/Research | Core integrity fell below 50% 8747 | -2/Research | System corruption reached 10% 8768 | -2/Research | Core integrity fell below 20% 8781 | -2/Research | Released all parts (5) 8799 | -2/Research | Lost 3 parts (1n2u) 8829 | -2/Research | Destroyed by P-80 Master with Gamma Rifle Last Messages --------------- 08773_ U-05 Engineer lays Concrete. 08773_ P-80 Master resets R-10 Processor, system corruption cleaned. 08774_ K-01 Serf collects debris. 08777_ U-05 Engineer lays Concrete. 08777_ K-01 Serf collects debris. 08781_ Released Great Maul. 08781_ Released Graphene Brace. 08781_ Released Adv. System Shield. 08781_ Released Xenon Bombardment Thruster. 08781_ Released Adv. ECM Suite. 08781_ P-80 Master resets K-01 Serf, system corruption cleaned. 08783_ R-10 Processor collects Graphene Brace. 08784_ ALERT: Potential suspicious activity detected, Programmers report to Research Zone 2E. 08786_ Slammed into K-01 Serf. 08786_ Destabilizing: System corrupted (+1). 08789_ X67Q5,3Y 9>#YJN%T|0KQYU 08793_ K-01 Serf cleans the Terminal. 08795_ Slammed into K-01 Serf. 08809_ S|B8LPOI8